bitfinex/quotes_SOLUSD_20241223
["timestamp","ask_amount","ask_price","bid_price","bid_amount"]
[1734958661269,8.51055363,184.44,184.34,8.14911861]
[1734958661578,8.51055363,184.44,184.35,0.8133896]
[1734958661780,6.9232662,184.45,184.35,0.8133896]
[1734958662557,20.0,184.42,184.35,0.8133896]
[1734958663480,6.9232662,184.45,184.37,6.5536]
[1734958663667,7.52621317,184.48,184.38,8.96237051]
[1734958664366,7.52621317,184.48,184.39,1.5749]
[1734958664680,7.52621317,184.48,184.4,0.81317347]
[1734958665083,20.0,184.45,184.4,0.81317347]
[1734958665682,7.52621317,184.48,184.4,0.81317347]
[1734958666054,2.73409847,184.5,184.4,0.81317347]
[1734958667084,20.0,184.48,184.4,0.81317347]
[1734958669002,6.9232662,184.47,184.39,1.5749]
[1734958669208,20.0,184.44,184.39,1.5749]
[1734958676820,20.0,184.44,184.37,6.5536]
[1734958676821,20.0,184.4,184.37,6.5536]
[1734958677115,20.0,184.4,184.35,1.6559]
[1734958679401,20.0,184.44,184.35,1.6559]
[1734958680126,20.0,184.4,184.35,1.6559]
[1734958683333,20.0,184.44,184.35,1.6559]
[1734958683530,20.0,184.44,184.35,2.4694488]
[1734958684734,20.0,184.44,184.35,1.6559]
[1734958690526,8.51055363,184.49,184.38,8.14911861]
[1734958690732,8.51055363,184.49,184.41,8.14911861]
[1734958690943,8.51055363,184.49,184.42,0.81304626]
[1734958691131,8.51055363,184.49,184.42,8.96216487]
[1734958691431,8.51055363,184.49,184.43,1.5312]
[1734958691635,15.44651677,184.52,184.44,0.81297146]
[1734958692748,20.0,184.49,184.44,0.81297146]
[1734958693140,20.0,184.49,184.43,1.5312]
[1734958696536,20.0,184.49,184.44,0.81300205]
[1734958697439,20.0,184.49,184.43,1.5312]
[1734958698540,20.0,184.49,184.44,0.81300145]
[1734958699369,15.44651677,184.52,184.44,0.81300145]
[1734958699572,20.0,184.53,184.44,0.81300145]
[1734958701646,20.0,184.53,184.45,6.4107]
[1734958701840,20.0,184.53,184.46,0.81288989]
[1734958702041,20.0,184.53,184.45,6.4107]
[1734958704656,20.0,184.49,184.43,1.5312]
[1734958705579,20.0,184.51,184.43,1.5312]
[1734958710274,8.51055363,184.57,184.43,1.5312]
[1734958710275,14.0456248,184.58,184.45,8.14911861]
[1734958710456,16.1834757,184.58,184.46,0.81287716]
[1734958710658,10.64840453,184.58,184.46,0.81287716]
[1734958711159,2.1378509,184.58,184.46,0.81287716]
[1734958711457,20.0,184.57,184.46,0.81287716]
[1734958711667,20.0,184.56,184.46,0.81287716]
[1734958713093,20.0,184.56,184.45,0.81290003]
[1734958714282,20.0,184.57,184.46,1.533]
[1734958718681,20.0,184.53,184.46,1.533]
[1734958724312,22.19858653,184.53,184.46,1.533]
[1734958724484,20.0,184.53,184.46,1.533]
[1734958725421,8.51055363,184.58,184.47,6.2473]
[1734958725622,8.51055363,184.58,184.48,0.81290561]
[1734958725792,8.51055363,184.58,184.49,1.6629]
[1734958726108,36.15434467,184.61,184.5,0.81277444]
[1734958726109,10.62268375,184.61,184.5,0.81277444]
[1734958727128,20.0,184.58,184.5,0.81277444]
[1734958727716,20.0,184.57,184.5,0.81277444]
[1734958728731,20.0,184.57,184.49,2.47567719]
[1734958729529,2.11213012,184.61,184.49,2.47567719]
[1734958729530,20.0,184.61,184.49,2.47567719]
[1734958729911,20.0,184.61,184.49,10.6247958]
[1734958731658,20.0,184.61,184.5,6.2792]
[1734958731810,20.0,184.61,184.51,0.81268535]
[1734958733934,20.0,184.61,184.52,1.521]
[1734958734119,20.0,184.61,184.53,0.81261107]
[1734958735344,20.0,184.61,184.54,7.8002]
[1734958735846,20.0,184.63,184.54,7.8002]
[1734958737856,20.0,184.65,184.54,7.8002]
[1734958738039,20.0,184.6,184.54,7.8002]
[1734958738244,23.776884,184.59,184.54,7.8002]
[1734958738554,20.0,184.56,184.54,7.8002]
[1734958739140,20.0,184.61,184.54,7.8002]
[1734958740843,20.0,184.6,184.54,7.8002]
[1734958741943,20.0,184.56,184.5,1.5952]
[1734958743655,20.0,184.58,184.5,1.5952]
[1734958744362,20.0,184.6,184.5,1.5952]
[1734958747950,23.776884,184.59,184.5,1.5952]
[1734958748132,20.0,184.56,184.5,1.5952]
[1734958748733,20.0,184.57,184.5,1.5952]
[1734958749155,20.0,184.58,184.5,1.5952]
[1734958749881,2.12612492,184.63,184.5,1.5952]
[1734958749882,20.0,184.6,184.5,1.5952]
[1734958750086,23.776884,184.62,184.5,1.5952]
[1734958750404,8.51055363,184.63,184.5,2.40797798]
[1734958750771,23.776884,184.63,184.5,2.40797798]
[1734958751512,20.0,184.6,184.5,1.5952]
[1734958757873,20.0,184.56,184.5,1.5952]
[1734958762423,20.0,184.52,184.5,1.5952]
[1734958765038,20.0,184.52,184.42,8.0061]
[1734958765915,23.776884,184.54,184.42,8.0061]
[1734958766225,20.0,184.51,184.42,8.0061]
[1734958768442,20.0,184.51,184.42,16.96835606]
[1734958768644,20.0,184.51,184.42,16.15521861]
[1734958769527,20.0,184.54,184.42,16.15521861]
[1734958771627,20.0,184.55,184.42,16.15521861]
[1734958771829,20.0,184.51,184.42,16.15521861]
[1734958772556,20.0,184.53,184.42,8.0061]
[1734958776551,20.0,184.49,184.42,8.0061]
[1734958776733,20.0,184.45,184.42,8.0061]
[1734958779360,8.51055363,184.52,184.42,16.15521861]
[1734958779520,8.51055363,184.52,184.44,8.14911861]
[1734958779716,8.51055363,184.52,184.45,1.6284]
[1734958779923,8.51055363,184.58,184.45,1.6284]
[1734958780213,15.76983184,184.58,184.45,1.6284]
[1734958780749,20.0,184.55,184.45,1.6284]
[1734958780953,20.0,184.56,184.45,1.6284]
[1734958781161,20.0,184.54,184.45,1.6284]
[1734958781833,20.0,184.56,184.45,1.6284]
[1734958782037,23.776884,184.55,184.45,1.6284]
[1734958782218,20.0,184.52,184.45,1.6284]
[1734958784556,23.776884,184.51,184.45,1.6284]
[1734958784723,20.0,184.48,184.45,1.6284]
[1734958788560,20.0,184.52,184.45,1.6284]
[1734958790732,20.0,184.48,184.45,1.6284]
[1734958800057,20.0,184.48,184.42,6.3633]
[1734958800534,20.0,184.44,184.41,1.5636]
[1734958800741,20.0,184.44,184.37,6.0269]
[1734958801364,20.0,184.5,184.37,14.9895568]
[1734958801558,4.72213784,184.53,184.38,9.69621861]
[1734958801559,20.0,184.52,184.38,9.69621861]
[1734958801784,20.0,184.53,184.38,9.69621861]
[1734958802136,25.81725848,184.53,184.38,9.69621861]
[1734958802655,20.0,184.53,184.38,9.69621861]
[1734958802853,20.0,184.49,184.38,1.5471]
[1734958803943,20.0,184.45,184.38,1.5471]
[1734958805460,23.776884,184.44,184.38,1.5471]
[1734958805662,20.0,184.41,184.38,1.5471]
[1734958807037,20.0,184.41,184.29,0.81358838]
[1734958807237,20.0,184.41,184.29,15.98341861]
[1734958807442,20.0,184.41,184.29,7.8343]
[1734958808547,23.776884,184.4,184.29,7.8343]
[1734958808760,20.0,184.37,184.29,7.8343]
[1734958810663,20.0,184.4,184.29,7.8343]
[1734958810852,20.0,184.4,184.31,1.6394]
[1734958811059,8.5072622,184.46,184.34,1.6394]
[1734958811365,8.5072622,184.46,184.35,6.3812]
[1734958811691,7.25989447,184.49,184.37,9.76471861]
[1734958811899,8.5072622,184.5,184.39,8.14911861]
[1734958812247,8.5072622,184.5,184.4,1.6156]
[1734958812463,7.25989447,184.54,184.4,1.6156]
[1734958813287,15.76715667,184.54,184.4,1.6156]
[1734958813470,0.68553159,184.53,184.4,1.6156]
[1734958813667,20.0,184.5,184.4,1.6156]
[1734958813874,20.0,184.46,184.4,1.6156]
[1734958814252,20.0,184.42,184.38,6.1879]
[1734958816570,15.76715667,184.5,184.38,6.1879]
[1734958816958,7.25989447,184.5,184.38,6.1879]
[1734958818371,20.0,184.47,184.39,1.5493]
[1734958818668,13.37387516,184.54,184.42,36.50025267]
[1734958818869,8.5072622,184.54,184.43,1.5493]
[1734958819085,8.5072622,184.56,184.43,1.5493]
[1734958819306,2.12469244,184.54,184.43,1.5493]
[1734958819756,9.21757227,184.54,184.43,1.5493]
[1734958819960,20.0,184.5,184.43,1.5493]
[1734958821883,20.0,184.53,184.43,1.5493]
[1734958822203,24.24938488,184.54,184.43,1.5493]
[1734958822676,15.60014203,184.58,184.44,18.76596867]
[1734958822877,15.60014203,184.58,184.45,1.553]
[1734958823609,12.22808186,184.57,184.45,1.553]
[1734958824011,23.776884,184.53,184.45,1.553]
[1734958824172,23.776884,184.56,184.45,1.553]
[1734958824507,8.5072622,184.58,184.45,1.553]
[1734958825009,5.13520203,184.57,184.45,1.553]
[1734958825174,20.0,184.54,184.45,1.553]
[1734958826115,20.0,184.5,184.45,1.553]
[1734958833122,20.0,184.54,184.45,1.553]
[1734958833532,23.776884,184.56,184.45,1.553]
[1734958833690,7.25989447,184.57,184.45,1.553]
[1734958834605,20.0,184.54,184.45,1.553]
[1734958835634,20.0,184.52,184.45,1.553]
[1734958835997,20.0,184.48,184.45,1.553]
[1734958836634,23.776884,184.51,184.45,1.553]
[1734958836948,38.1296583,184.55,184.45,1.553]
[1734958836949,20.0,184.48,184.45,1.553]
[1734958837621,20.0,184.52,184.45,1.553]
[1734958837947,20.0,184.51,184.45,1.553]
[1734958839233,20.0,184.47,184.45,1.553]
[1734958839411,1.575,184.55,184.45,1.553]
[1734958839621,20.0,184.51,184.45,1.553]
[1734958839935,8.5072622,184.55,184.45,1.553]
[1734958840451,15.76715667,184.57,184.45,1.553]
[1734958840747,23.776884,184.56,184.45,1.553]
[1734958842515,8.5072622,184.6,184.45,1.553]
[1734958842707,8.5072622,184.6,184.46,6.5944]
[1734958842910,8.5072622,184.61,184.46,6.5944]
[1734958843717,23.776884,184.6,184.47,1.6455]
[1734958843938,8.5072622,184.61,184.47,2.45837265]
[1734958844137,8.5072622,184.61,184.48,6.3082]
[1734958844538,31.20570208,184.63,184.48,6.3082]
[1734958845150,20.0,184.59,184.49,1.6039]
[1734958845838,20.0,184.55,184.49,1.6039]
[1734958846418,20.0,184.59,184.49,1.6039]
[1734958846643,20.0,184.55,184.49,1.6039]
[1734958847719,8.5072622,184.61,184.49,1.6039]
[1734958847720,20.0,184.51,184.49,1.6039]
[1734958847926,20.0,184.51,184.39,7.6767]
[1734958849127,20.0,184.51,184.39,8.48991825]
[1734958849459,20.0,184.51,184.4,25.419284]
[1734958849636,20.0,184.51,184.41,15.57249567]
[1734958849963,8.5072622,184.58,184.44,9.78077802]
[1734958850130,8.5072622,184.59,184.48,6.621]
[1734958850333,8.5072622,184.59,184.49,15.1639932]
[1734958850551,8.5072622,184.59,184.5,36.48568152]
[1734958850757,8.5072622,184.59,184.52,12.70879752]
[1734958850922,15.43854541,184.63,184.53,0.8126065]
[1734958851434,8.5072622,184.66,184.55,12.70879752]
[1734958851638,8.5072622,184.66,184.54,7.5842]
[1734958852031,8.5072622,184.7,184.54,7.5842]
[1734958852631,20.0,184.66,184.54,7.5842]
[1734958853457,43.776884,184.65,184.54,7.5842]
[1734958853871,20.0,184.63,184.54,7.5842]
[1734958854224,20.0,184.59,184.54,7.5842]
[1734958858529,20.0,184.55,184.54,1.5177]
[1734958858867,20.0,184.55,184.5,1.6599]
[1734958861055,23.776884,184.62,184.5,1.6599]
[1734958861360,20.0,184.6,184.5,1.6599]
[1734958862161,20.0,184.63,184.5,1.6599]
[1734958862654,23.776884,184.62,184.5,1.6599]
[1734958862856,23.776884,184.58,184.5,1.6599]
[1734958863164,20.0,184.55,184.5,1.6599]
[1734958864671,20.0,184.61,184.5,1.6599]
[1734958864964,20.0,184.57,184.5,1.6599]
[1734958866461,20.0,184.62,184.5,1.6599]
[1734958868259,20.0,184.58,184.5,1.6599]
[1734958870146,20.0,184.54,184.5,1.6599]
[1734958870852,20.0,184.57,184.5,1.6599]
[1734958871055,23.776884,184.56,184.49,6.2753]
[1734958871239,20.0,184.53,184.49,6.2753]
[1734958871654,23.776884,184.55,184.49,6.2753]
[1734958871865,20.0,184.52,184.49,6.2753]
[1734958872077,20.0,184.52,184.46,1.553]
[1734958872490,20.0,184.48,184.42,1.5357]
[1734958873074,20.0,184.44,184.4,6.4241]
[1734958873281,20.0,184.44,184.37,1.6311]
[1734958873572,1.5055,184.54,184.37,1.6311]
[1734958873747,23.776884,184.54,184.4,12.70879752]
[1734958873949,8.5072622,184.52,184.4,14.28779752]
[1734958874288,8.5072622,184.52,184.42,12.70879752]
[1734958874460,8.5072622,184.52,184.43,8.1474]
[1734958874666,8.5072622,184.55,184.43,8.1474]
[1734958874982,20.0,184.52,184.43,8.1474]
[1734958875481,20.0,184.56,184.43,8.1474]
[1734958875650,20.0,184.56,184.43,21.66928704]
[1734958875980,20.0,184.56,184.44,12.70879752]
[1734958876488,8.5072622,184.6,184.46,1.5287]
[1734958876651,8.5072622,184.6,184.47,6.6487]
[1734958877654,23.776884,184.59,184.47,6.6487]
[1734958877852,23.776884,184.6,184.47,6.6487]
[1734958878358,20.0,184.57,184.47,6.6487]
[1734958887596,20.0,184.53,184.47,6.6487]
[1734958887889,20.0,184.49,184.47,6.6487]
[1734958888390,20.0,184.53,184.47,6.6487]
[1734958894666,20.0,184.55,184.47,6.6487]
[1734958899904,20.0,184.51,184.47,6.6487]
[1734958901501,20.0,184.51,184.42,6.3627]
[1734958901798,23.776884,184.46,184.41,1.55]
[1734958901990,20.0,184.43,184.41,1.55]
[1734958902699,20.0,184.44,184.41,1.55]
[1734958903704,20.0,184.44,184.37,6.3627]
[1734958903705,20.0,184.4,184.37,6.3627]
[1734958906393,20.0,184.47,184.37,6.3627]
[1734958906594,20.0,184.43,184.37,7.8921]
[1734958912837,23.776884,184.46,184.37,7.8921]
[1734958914143,20.0,184.43,184.37,7.8921]
[1734958926451,20.0,184.39,184.32,6.5865]
[1734958926633,20.0,184.39,184.33,1.6523]
[1734958932350,20.0,184.35,184.28,1.6156]
[1734958934565,20.0,184.41,184.28,1.6156]
[1734958934732,20.0,184.37,184.28,1.6156]
[1734958935843,20.0,184.33,184.28,1.6156]
[1734958938747,20.0,184.33,184.23,1.5355]
[1734958939140,20.0,184.29,184.23,1.5355]
[1734958940364,20.0,184.34,184.23,1.5355]
[1734958941049,20.0,184.35,184.23,1.5355]
[1734958941248,20.0,184.31,184.23,1.5355]
[1734958944773,11.00166614,184.34,184.23,1.5355]
[1734958946063,20.0,184.31,184.23,1.5355]
[1734958947052,20.0,184.31,184.24,23.776884]
[1734958951071,6.60354339,184.4,184.24,23.776884]
[1734958951269,5.30073362,184.39,184.26,23.776884]
[1734958951569,5.70093252,184.38,184.26,23.776884]
[1734958951768,5.70093252,184.38,184.27,1.6528]
[1734958951941,5.02814339,184.4,184.3,23.776884]
[1734958951942,5.30073362,184.4,184.3,23.776884]
[1734958952141,14.77006401,184.44,184.32,23.776884]
[1734958952349,21.37995848,184.44,184.32,23.776884]
[1734958952552,12.87269628,184.44,184.32,23.776884]
[1734958953787,23.776884,184.43,184.31,1.6528]
[1734958953950,23.776884,184.43,184.29,6.4763]
[1734958953951,23.776884,184.41,184.29,6.4763]
[1734958954150,20.0,184.37,184.29,6.4763]
[1734958954371,0.99838978,184.36,184.29,6.4763]
[1734958954548,20.0,184.33,184.29,6.4763]
[1734958954969,20.0,184.33,184.28,1.6634]
[1734958956158,20.0,184.33,184.25,6.5955]
[1734958956768,20.0,184.3,184.25,6.5955]
[1734958960882,20.0,184.3,184.23,1.5551]
[1734958972897,5.70093252,184.37,184.25,6.0184]
[1734958973100,2.50775911,184.38,184.27,1.6141]
[1734958973276,2.50775911,184.39,184.27,1.6141]
[1734958973473,5.70093252,184.38,184.27,1.6141]
[1734958973885,2.50775911,184.37,184.27,1.6141]
[1734958974276,8.20869163,184.37,184.27,1.6141]
[1734958974772,5.70093252,184.36,184.27,1.6141]
[1734958975303,7.59356114,184.35,184.27,1.6141]
[1734958975505,20.0,184.32,184.27,1.6141]
[1734958978378,20.0,184.32,184.25,6.0184]
[1734958978882,20.0,184.3,184.25,6.0184]
[1734958980507,20.0,184.3,184.23,1.5652]
[1734958981009,20.0,184.32,184.23,1.5652]
[1734958981306,20.0,184.27,184.21,6.0944]
[1734958982205,20.0,184.27,184.2,1.6431]
[1734958982510,26.61336961,184.27,184.2,1.6431]
[1734958983180,20.0,184.26,184.2,1.6431]
[1734958984103,20.0,184.24,184.2,1.6431]
[1734958984901,20.0,184.24,184.19,0.6813741]
[1734958985779,20.0,184.2,184.19,0.6813741]
[1734958987632,20.0,184.2,184.15,1.5998]
[1734958987633,20.0,184.22,184.15,1.5998]
[1734958989541,23.776884,184.22,184.15,1.5998]
[1734958989809,20.0,184.19,184.15,1.5998]
[1734958990011,8.5072622,184.27,184.15,1.5998]
[1734958990214,8.5072622,184.27,184.16,6.2647]
[1734958990416,42.53631103,184.29,184.16,6.2647]
[1734958991312,60.22743439,184.32,184.16,6.2647]
[1734958991313,20.0,184.26,184.16,6.2647]
[1734958991509,20.0,184.28,184.17,1.5321]
[1734958991702,8.5072622,184.31,184.18,23.776884]
[1734958991904,7.59356114,184.32,184.2,1.5321]
[1734958992416,7.59356114,184.32,184.22,6.1067]
[1734958992593,8.5072622,184.33,184.23,1.6281]
[1734958992800,8.5072622,184.34,184.23,1.6281]
[1734958993428,24.60808555,184.36,184.23,1.6281]
[1734958993429,16.10082334,184.36,184.23,1.6281]
[1734958993619,20.0,184.32,184.23,1.6281]
[1734958994195,13.58480739,184.35,184.23,1.6281]
[1734958994411,8.5072622,184.36,184.23,1.6281]
[1734958994412,3.06985827,184.34,184.23,1.6281]
[1734958994616,13.58480739,184.34,184.23,1.6281]
[1734958995741,20.0,184.31,184.23,1.6281]
[1734958999239,20.0,184.27,184.23,1.6281]
[1734959000200,20.0,184.28,184.23,1.6281]
[1734959011637,19.02221132,184.31,184.23,1.6281]
[1734959012739,10.51494912,184.31,184.23,1.6281]
[1734959013138,20.0,184.28,184.23,1.6281]
[1734959019634,20.0,184.3,184.23,1.6281]
[1734959020135,8.5072622,184.33,184.23,1.6281]
[1734959020645,8.5072622,184.33,184.25,1.539]
[1734959020953,39.58297,184.36,184.25,1.539]
[1734959020954,8.5072622,184.35,184.28,1.539]
[1734959021641,8.5072622,184.39,184.28,1.539]
[1734959022649,16.10082334,184.4,184.3,1.539]
[1734959023033,8.5072622,184.4,184.3,1.539]
[1734959023344,8.5072622,184.43,184.33,1.5874]
[1734959024551,7.59356114,184.45,184.33,1.5874]
[1734959024552,20.0,184.42,184.33,1.5874]
[1734959025016,7.59356114,184.45,184.34,23.776884]
[1734959026645,20.0,184.42,184.34,23.776884]
[1734959027059,20.0,184.42,184.35,7.8999]
[1734959029947,7.07121317,184.48,184.36,24.59033725]
[1734959030153,8.5072622,184.51,184.38,23.776884]
[1734959030332,41.62260997,184.52,184.38,23.776884]
[1734959031256,7.59356114,184.52,184.39,8.82227106]
[1734959031560,16.10082334,184.57,184.43,6.103]
[1734959031767,7.59356114,184.56,184.43,6.103]
[1734959033072,7.96248165,184.58,184.45,8.0367]
[1734959033354,8.5072622,184.62,184.49,23.776884]
[1734959033521,8.5072622,184.62,184.5,1.6008]
[1734959033941,7.59356114,184.64,184.51,23.776884]
[1734959034635,7.59356114,184.64,184.53,23.776884]
[1734959034835,7.59356114,184.64,184.52,6.5018]
[1734959035242,20.0,184.6,184.52,6.5018]
[1734959036135,20.0,184.56,184.52,6.5018]
[1734959036646,20.0,184.56,184.5,1.6008]
[1734959041062,20.0,184.6,184.5,1.6008]
[1734959041984,20.0,184.61,184.5,1.6008]
[1734959042475,20.0,184.61,184.51,23.776884]
[1734959042764,20.0,184.61,184.5,1.6008]
[1734959043261,20.0,184.57,184.5,1.6008]
[1734959046357,20.0,184.53,184.5,1.6008]
[1734959049468,20.0,184.53,184.48,6.039]
[1734959049656,23.776884,184.48,184.44,6.2918]
[1734959049851,20.0,184.45,184.35,6.2918]
[1734959052245,20.0,184.41,184.35,6.2918]
[1734959052642,20.0,184.37,184.25,6.2646]
[1734959052859,20.0,184.37,184.26,1.6243]
[1734959054067,20.0,184.33,184.26,1.6243]
[1734959056063,20.0,184.36,184.26,1.6243]
[1734959057869,20.0,184.32,184.26,1.6243]
[1734959058956,20.0,184.36,184.26,1.6243]
[1734959059555,20.0,184.32,184.26,1.6243]
[1734959059764,20.0,184.28,184.26,1.6243]
[1734959060851,20.0,184.32,184.26,1.6243]
[1734959066748,23.776884,184.31,184.26,1.6243]
[1734959066976,20.0,184.28,184.26,1.6243]
[1734959068288,20.0,184.24,184.2,8.1013]
[1734959068495,20.0,184.24,184.13,6.0848]
[1734959068701,20.0,184.2,184.13,7.7431]
[1734959069185,20.0,184.23,184.13,7.7431]
[1734959069370,20.0,184.19,184.13,7.7431]
[1734959069680,23.776884,184.18,184.13,7.7431]
[1734959070292,20.0,184.15,184.08,7.8072]
[1734959070471,20.0,184.15,184.06,0.4677917]
[1734959070790,20.0,184.11,184.06,0.4677917]
[1734959074185,82.5,184.26,184.06,13.18288307]
[1734959074381,12.92453514,184.25,184.06,13.18288307]
[1734959074602,6.28013514,184.24,184.06,0.4677917]
[1734959075095,10.46915245,184.24,184.06,0.4677917]
[1734959075265,20.0,184.21,184.06,0.4677917]
[1734959076297,20.0,184.17,184.06,0.4677917]
[1734959076594,23.776884,184.16,184.06,0.4677917]
[1734959076796,20.0,184.13,184.06,0.4677917]
[1734959077470,20.0,184.21,184.06,0.4677917]
[1734959077679,23.776884,184.2,184.06,0.4677917]
[1734959077866,20.0,184.17,184.06,0.4677917]
[1734959078572,20.0,184.13,184.06,0.4677917]
[1734959081173,20.0,184.09,184.06,0.4677917]
[1734959081703,20.0,184.05,183.98,6.4237]
[1734959082185,20.0,184.05,183.96,1.5284]
[1734959083011,23.776884,184.04,183.96,1.5284]
[1734959083200,20.0,184.01,183.96,1.5284]
[1734959083398,20.0,184.05,183.96,1.5284]
[1734959083788,20.0,184.01,183.96,1.5284]
[1734959084382,20.0,184.05,183.94,6.4237]
[1734959084707,23.776884,184.0,183.94,6.4237]
[1734959085209,20.0,184.01,183.94,6.4237]
[1734959085710,20.0,184.06,183.94,6.4237]
[1734959086386,5.68359919,184.06,183.94,6.4237]
[1734959086703,20.0,183.99,183.94,6.4237]
[1734959086904,20.0,183.99,183.89,1.5284]
[1734959086905,23.776884,183.98,183.89,8.0965]
[1734959087079,20.0,183.95,183.89,8.0965]
[1734959087723,20.0,183.95,183.88,0.6767104]
[1734959087913,20.0,183.98,183.88,0.6767104]
[1734959089006,20.0,183.94,183.88,0.6767104]
[1734959091006,23.776884,184.0,183.88,0.6767104]
[1734959092584,20.0,183.97,183.88,0.6767104]
[1734959094121,20.0,183.98,183.88,0.6767104]
[1734959102219,20.0,183.94,183.88,0.6767104]
[1734959103102,6.28013514,184.01,183.88,0.6767104]
[1734959103103,20.0,183.98,183.88,0.6767104]
[1734959103634,6.5787,184.08,183.9,1.6268]
[1734959103799,6.28013514,184.07,183.9,1.6268]
[1734959103995,9.10422758,184.07,183.9,1.6268]
[1734959104316,4.04724647,184.06,183.9,1.6268]
[1734959104733,20.0,184.04,183.9,1.6268]
[1734959104936,20.0,184.02,183.9,1.6268]
[1734959108036,23.776884,184.01,183.9,1.6268]
[1734959108198,20.0,183.98,183.9,1.6268]
[1734959108641,20.0,184.02,183.91,6.1753]
[1734959113125,20.0,184.02,183.92,23.776884]
[1734959113326,22.82409244,184.07,183.91,18.9658219]
[1734959113526,20.0,184.06,183.91,6.1753]
[1734959113720,2.82409244,184.07,183.92,36.5674059]
[1734959113918,5.63994647,184.09,183.93,1.6458]
[1734959114138,8.46403891,184.09,183.93,1.6458]
[1734959114312,14.74417405,184.09,183.93,1.6458]
[1734959115211,20.0,184.02,183.93,1.6458]
[1734959115928,20.0,184.05,183.93,1.6458]
[1734959117335,20.0,184.06,183.96,23.776884]
[1734959117525,1.5536,184.14,183.96,23.776884]
[1734959117526,20.0,184.1,183.96,23.776884]
[1734959117724,20.0,184.1,183.97,6.0301]
[1734959118319,20.0,184.07,183.97,6.0301]
[1734959124541,20.0,184.03,183.97,6.0301]
[1734959130725,43.776884,184.08,183.97,6.0301]
[1734959131235,20.0,184.03,183.97,6.0301]
[1734959133154,20.0,184.02,183.97,6.0301]
[1734959134351,20.0,184.01,183.97,6.0301]
[1734959135247,20.0,184.03,183.97,6.0301]
[1734959136363,20.0,184.05,183.97,6.0301]
[1734959137357,20.0,184.06,183.97,6.0301]
[1734959138637,20.0,184.08,183.97,6.0301]
[1734959140068,20.0,184.08,183.97,18.8206219]
[1734959140265,17.34040485,184.12,183.98,1.597]
[1734959140438,23.776884,184.11,183.98,1.597]
[1734959141574,20.0,184.08,183.98,1.597]
[1734959145172,20.0,184.08,183.98,14.3875219]
[1734959145376,20.0,184.1,183.98,14.3875219]
[1734959146179,20.0,184.11,183.98,14.3875219]
[1734959146575,20.0,184.11,184.01,1.5734]
[1734959146785,8.5072622,184.14,184.01,14.3639219]
[1734959147982,12.87691399,184.16,184.01,14.3639219]
[1734959147983,20.0,184.11,184.01,14.3639219]
[1734959148159,20.0,184.13,184.02,6.1611]
[1734959153096,20.0,184.09,184.02,6.1611]
[1734959154790,20.0,184.05,184.01,1.5734]
[1734959155389,20.0,184.08,184.02,6.5923]
[1734959155987,20.0,184.12,184.02,6.5923]
[1734959156988,23.776884,184.11,184.02,6.5923]
[1734959157195,20.0,184.08,184.02,6.5923]
[1734959157790,20.0,184.12,184.02,6.5923]
[1734959159898,15.37860111,184.15,184.02,6.5923]
[1734959160472,6.87133891,184.15,184.02,6.5923]
[1734959161198,20.0,184.12,184.02,6.5923]
[1734959164994,7.41441324,184.16,184.04,6.309]
[1734959165209,8.5072622,184.17,184.05,38.10148178]
[1734959165408,8.5072622,184.18,184.05,38.10148178]